[Event "*** Titled Tuesday Blitz"]
[Site "Chess.com"]
[Date "2020.03.03"]
[Round "5"]
[White "VerdeNotte"]
[Black "MiroVlasenko"]
[Result "1-0"]
[WhiteElo "2819"]
[BlackElo "2629"]
[TimeControl "180+1"]
[EndTime "9:49:32 PST"]
[Termination "VerdeNotte won by resignation"]

1. e4 {[%clk 0:02:54.9]} 1... Nc6 {[%clk 0:02:58]} 2. d4 {[%clk 0:02:53.8]} 2...
d5 {[%clk 0:02:57.9]} 3. e5 {[%clk 0:02:53.4]} 3... Bf5 {[%clk 0:02:57.4]} 4.
Bb5 {[%clk 0:02:46.1]} 4... e6 {[%clk 0:02:56.6]} 5. Ne2 {[%clk 0:02:45.7]} 5...
Ne7 {[%clk 0:02:55.1]} 6. Ng3 {[%clk 0:02:44.9]} 6... Bg6 {[%clk 0:02:54.9]} 7.
Bg5 {[%clk 0:02:44.5]} 7... Qd7 {[%clk 0:02:53.3]} 8. Nd2 {[%clk 0:02:40.6]}
8... a6 {[%clk 0:02:51.5]} 9. Bxe7 {[%clk 0:02:26]} 9... Bxe7 {[%clk 0:02:46.5]}
10. Bxc6 {[%clk 0:02:26.1]} 10... Qxc6 {[%clk 0:02:46.2]} 11. c3 {[%clk
0:02:24.6]} 11... h5 {[%clk 0:02:41.1]} 12. h4 {[%clk 0:02:22.6]} 12... Qd7
{[%clk 0:02:29.3]} 13. b4 {[%clk 0:02:18.7]} 13... a5 {[%clk 0:02:25.8]} 14. a3
{[%clk 0:02:17.7]} 14... Qb5 {[%clk 0:02:15.7]} 15. Ne2 {[%clk 0:01:58.1]} 15...
b6 {[%clk 0:02:08.4]} 16. a4 {[%clk 0:01:56.5]} 16... Qd3 {[%clk 0:02:04.8]} 17.
Rh3 {[%clk 0:01:54.7]} 17... Qf5 {[%clk 0:01:56.2]} 18. b5 {[%clk 0:01:45.5]}
18... f6 {[%clk 0:01:49.1]} 19. Rf3 {[%clk 0:01:43.1]} 19... Qc2 {[%clk
0:01:45.9]} 20. Nf4 {[%clk 0:01:42.4]} 20... Qxd1+ {[%clk 0:01:39.8]} 21. Kxd1
{[%clk 0:01:36.7]} 21... Bf5 {[%clk 0:01:39.4]} 22. Nxd5 {[%clk 0:01:35]} 22...
Bd8 {[%clk 0:01:33.6]} 23. Ne3 {[%clk 0:01:29.7]} 23... Bg6 {[%clk 0:01:31.5]}
24. Rg3 {[%clk 0:01:27.1]} 24... Kf7 {[%clk 0:01:31.5]} 25. Nf3 {[%clk 0:01:27]}
25... Be7 {[%clk 0:01:29.4]} 26. Kd2 {[%clk 0:01:25.2]} 26... Rhd8 {[%clk
0:01:28.3]} 27. Nc4 {[%clk 0:01:14.1]} 27... Rac8 {[%clk 0:01:20.5]} 28. exf6
{[%clk 0:01:14]} 28... gxf6 {[%clk 0:01:16.3]} 29. Nfe5+ {[%clk 0:01:13.8]} 1-0

[Event "*** Titled Tuesday Blitz"]
[Site "Chess.com"]
[Date "2020.03.03"]
[Round "5"]
[White "dlp300"]
[Black "Dino_Ballecer"]
[Result "0-1"]
[WhiteElo "2671"]
[BlackElo "2521"]
[TimeControl "180+1"]
[EndTime "9:49:33 PST"]
[Termination "Dino_Ballecer won by resignation"]

1. e4 {[%clk 0:03:00.7]} 1... c5 {[%clk 0:03:00.3]} 2. Nf3 {[%clk 0:03:00.9]}
2... d6 {[%clk 0:03:00.2]} 3. d4 {[%clk 0:03:01.2]} 3... cxd4 {[%clk 0:02:59.9]}
4. Nxd4 {[%clk 0:03:02.1]} 4... Nf6 {[%clk 0:03:00.4]} 5. Nc3 {[%clk 0:03:02]}
5... g6 {[%clk 0:02:59.5]} 6. h3 {[%clk 0:02:58.7]} 6... Bg7 {[%clk 0:02:57.7]}
7. g4 {[%clk 0:02:59.1]} 7... O-O {[%clk 0:02:56.8]} 8. Bg2 {[%clk 0:02:59.8]}
8... Nc6 {[%clk 0:02:52.8]} 9. Nde2 {[%clk 0:02:59.9]} 9... Be6 {[%clk 0:02:49]}
10. O-O {[%clk 0:02:59.6]} 10... Bc4 {[%clk 0:02:45.2]} 11. f4 {[%clk
0:02:55.5]} 11... d5 {[%clk 0:02:38.7]} 12. e5 {[%clk 0:02:32.6]} 12... Ne4
{[%clk 0:02:37.9]} 13. Nxe4 {[%clk 0:02:13.1]} 13... dxe4 {[%clk 0:02:36.3]} 14.
Qxd8 {[%clk 0:01:35]} 14... Raxd8 {[%clk 0:02:34.5]} 15. Re1 {[%clk 0:01:35.9]}
15... f5 {[%clk 0:02:05.2]} 16. exf6 {[%clk 0:01:31.9]} 16... exf6 {[%clk
0:02:03.5]} 17. Bxe4 {[%clk 0:01:23.7]} 17... Rfe8 {[%clk 0:02:03]} 18. b3
{[%clk 0:01:02.9]} 18... Rxe4 {[%clk 0:01:54.4]} 19. bxc4 {[%clk 0:01:02.4]}
19... Nd4 {[%clk 0:01:50.3]} 20. Nxd4 {[%clk 0:00:55.2]} 20... Rxe1+ {[%clk
0:01:48.2]} 21. Kf2 {[%clk 0:00:55.7]} 21... Rxc1 {[%clk 0:01:46.6]} 22. Rxc1
{[%clk 0:00:53.7]} 22... Rxd4 {[%clk 0:01:46.8]} 23. Ke3 {[%clk 0:00:52]} 23...
Rxc4 {[%clk 0:01:46.4]} 24. c3 {[%clk 0:00:52]} 24... Kf7 {[%clk 0:01:45.8]} 0-1

[Event "*** Titled Tuesday Blitz"]
[Site "Chess.com"]
[Date "2020.03.03"]
[Round "5"]
[White "Eraschenkov"]
[Black "inegrepus"]
[Result "1-0"]
[WhiteElo "2576"]
[BlackElo "2273"]
[TimeControl "180+1"]
[EndTime "9:49:43 PST"]
[Termination "Eraschenkov won by checkmate"]

1. c4 {[%clk 0:03:00.9]} 1... e6 {[%clk 0:03:00.7]} 2. Nc3 {[%clk 0:02:59.7]}
2... Nf6 {[%clk 0:03:00.8]} 3. e4 {[%clk 0:02:59.5]} 3... d6 {[%clk 0:03:00.1]}
4. d4 {[%clk 0:02:58.7]} 4... Be7 {[%clk 0:02:59.7]} 5. f4 {[%clk 0:02:56.4]}
5... O-O {[%clk 0:02:59.7]} 6. Nf3 {[%clk 0:02:54.6]} 6... c5 {[%clk 0:03:00]}
7. Be2 {[%clk 0:02:50]} 7... cxd4 {[%clk 0:02:59.7]} 8. Nxd4 {[%clk 0:02:47.1]}
8... Nc6 {[%clk 0:02:59.5]} 9. Nc2 {[%clk 0:02:32.9]} 9... a6 {[%clk 0:02:56.2]}
10. O-O {[%clk 0:02:31.7]} 10... Qc7 {[%clk 0:02:56.7]} 11. Be3 {[%clk
0:02:14.1]} 11... b6 {[%clk 0:02:56.7]} 12. Rc1 {[%clk 0:02:13]} 12... Bb7
{[%clk 0:02:56.7]} 13. Qd2 {[%clk 0:02:10.1]} 13... Rac8 {[%clk 0:02:52.7]} 14.
Rfd1 {[%clk 0:02:01.8]} 14... Rfd8 {[%clk 0:02:50.5]} 15. Bf3 {[%clk 0:01:53.8]}
15... Nd7 {[%clk 0:02:49.5]} 16. Qf2 {[%clk 0:01:50.4]} 16... Ba8 {[%clk
0:02:36.6]} 17. b4 {[%clk 0:01:44.7]} 17... Bf6 {[%clk 0:02:24.4]} 18. Na4
{[%clk 0:01:41.7]} 18... Rb8 {[%clk 0:02:15]} 19. b5 {[%clk 0:01:37.2]} 19...
axb5 {[%clk 0:02:04.5]} 20. cxb5 {[%clk 0:01:36.7]} 20... Na5 {[%clk 0:02:01.4]}
21. Nb4 {[%clk 0:01:28.2]} 21... Qa7 {[%clk 0:01:55.2]} 22. Na6 {[%clk
0:01:23.9]} 22... Rb7 {[%clk 0:01:43.7]} 23. Rxd6 {[%clk 0:01:19.5]} 23... Nc5
{[%clk 0:01:33.2]} 24. Rxd8+ {[%clk 0:00:57.2]} 24... Bxd8 {[%clk 0:01:34.1]}
25. N4xc5 {[%clk 0:00:54.5]} 25... bxc5 {[%clk 0:01:34.1]} 26. Bxc5 {[%clk
0:00:54.3]} 26... Bb6 {[%clk 0:01:29.1]} 27. Bxb6 {[%clk 0:00:54]} 27... Rxb6
{[%clk 0:01:27.9]} 28. Rc8# {[%clk 0:00:53.2]} 1-0

[Event "*** Titled Tuesday Blitz"]
[Site "Chess.com"]
[Date "2020.03.03"]
[Round "5"]
[White "Oleksandr_Bortnyk"]
[Black "Lagravesamuell"]
[Result "1-0"]
[WhiteElo "2953"]
[BlackElo "2644"]
[TimeControl "180+1"]
[EndTime "9:49:52 PST"]
[Termination "Oleksandr_Bortnyk won by resignation"]

1. e4 {[%clk 0:03:00.9]} 1... c5 {[%clk 0:02:59.2]} 2. c3 {[%clk 0:03:00.7]}
2... d5 {[%clk 0:02:56]} 3. exd5 {[%clk 0:03:01.6]} 3... Qxd5 {[%clk 0:02:56.5]}
4. d4 {[%clk 0:02:59.8]} 4... Nc6 {[%clk 0:02:56.5]} 5. Nf3 {[%clk 0:02:58.3]}
5... Bf5 {[%clk 0:02:56.6]} 6. Na3 {[%clk 0:02:55.4]} 6... cxd4 {[%clk 0:02:30]}
7. Bc4 {[%clk 0:02:54.6]} 7... Qe4+ {[%clk 0:02:29.6]} 8. Be3 {[%clk 0:02:54.9]}
8... e6 {[%clk 0:02:27.7]} 9. Ng5 {[%clk 0:02:02.2]} 9... Qe5 {[%clk 0:02:11.1]}
10. cxd4 {[%clk 0:01:39.6]} 10... Bb4+ {[%clk 0:02:07.1]} 11. Kf1 {[%clk
0:01:35.5]} 11... Qa5 {[%clk 0:01:55.1]} 12. d5 {[%clk 0:01:29.2]} 12... Rd8
{[%clk 0:01:38.4]} 13. Qe2 {[%clk 0:01:28.9]} 13... Ne5 {[%clk 0:01:24.4]} 14.
dxe6 {[%clk 0:01:26.5]} 14... fxe6 {[%clk 0:00:54.4]} 15. Nxe6 {[%clk 0:01:24]}
15... Nxc4 {[%clk 0:00:28.2]} 16. Nxc4 {[%clk 0:01:16.5]} 16... Qd5 {[%clk
0:00:18.4]} 17. Nc7+ {[%clk 0:01:15.5]} 1-0

[Event "*** Titled Tuesday Blitz"]
[Site "Chess.com"]
[Date "2020.03.03"]
[Round "5"]
[White "Kotofeyca"]
[Black "Quiet_Desperation"]
[Result "1-0"]
[WhiteElo "2375"]
[BlackElo "2046"]
[TimeControl "180+1"]
[EndTime "9:49:57 PST"]
[Termination "Kotofeyca won by resignation"]

1. d4 {[%clk 0:03:00.9]} 1... Nf6 {[%clk 0:02:59.6]} 2. c4 {[%clk 0:03:01.1]}
2... e6 {[%clk 0:02:57.8]} 3. Nf3 {[%clk 0:03:01.2]} 3... Bb4+ {[%clk 0:02:58]}
4. Nbd2 {[%clk 0:03:01.1]} 4... b6 {[%clk 0:02:57.6]} 5. a3 {[%clk 0:03:01.3]}
5... Bxd2+ {[%clk 0:02:55.2]} 6. Bxd2 {[%clk 0:03:02.2]} 6... Bb7 {[%clk
0:02:54.7]} 7. Bg5 {[%clk 0:03:02.3]} 7... h6 {[%clk 0:02:54]} 8. Bh4 {[%clk
0:03:02]} 8... d6 {[%clk 0:02:43.6]} 9. e3 {[%clk 0:03:00.2]} 9... Nbd7 {[%clk
0:02:43.4]} 10. Be2 {[%clk 0:02:59.9]} 10... Qe7 {[%clk 0:02:43.2]} 11. O-O
{[%clk 0:02:59.4]} 11... g5 {[%clk 0:02:42]} 12. Bg3 {[%clk 0:02:59]} 12... Ne4
{[%clk 0:02:42.4]} 13. Nd2 {[%clk 0:02:56.3]} 13... h5 {[%clk 0:02:40]} 14. Nxe4
{[%clk 0:02:49]} 14... h4 {[%clk 0:02:31.8]} 15. Bf3 {[%clk 0:02:36.8]} 15...
hxg3 {[%clk 0:02:25.3]} 16. fxg3 {[%clk 0:02:36.2]} 16... O-O-O {[%clk
0:02:22.5]} 17. Nc3 {[%clk 0:02:21.5]} 17... f5 {[%clk 0:02:15.7]} 18. Bxb7+
{[%clk 0:02:16.5]} 18... Kxb7 {[%clk 0:02:10.5]} 19. Qf3+ {[%clk 0:02:17.4]}
19... Kb8 {[%clk 0:02:04.5]} 20. e4 {[%clk 0:02:17.6]} 20... g4 {[%clk
0:01:56.1]} 21. Qf4 {[%clk 0:01:37.1]} 21... Qh7 {[%clk 0:01:54.6]} 22. e5
{[%clk 0:01:25.5]} 22... dxe5 {[%clk 0:01:52.5]} 23. dxe5 {[%clk 0:01:24.2]}
23... Nc5 {[%clk 0:01:46.7]} 24. Rad1 {[%clk 0:00:59.3]} 24... Qxh2+ {[%clk
0:01:30.1]} 25. Kf2 {[%clk 0:00:58.9]} 25... Nd3+ {[%clk 0:01:28.9]} 26. Rxd3
{[%clk 0:00:57.9]} 26... Rxd3 {[%clk 0:01:29.8]} 27. Ne2 {[%clk 0:00:39.9]}
27... Rxg3 {[%clk 0:01:22.7]} 1-0

[Event "*** Titled Tuesday Blitz"]
[Site "Chess.com"]
[Date "2020.03.03"]
[Round "5"]
[White "IMRosen"]
[Black "czasnaszachy"]
[Result "1-0"]
[WhiteElo "2498"]
[BlackElo "2282"]
[TimeControl "180+1"]
[EndTime "9:49:58 PST"]
[Termination "IMRosen won on time"]

1. d4 {[%clk 0:03:00.9]} 1... Nf6 {[%clk 0:02:59.3]} 2. Bf4 {[%clk 0:03:00.4]}
2... g6 {[%clk 0:02:53.4]} 3. Nc3 {[%clk 0:02:57.9]} 3... Bg7 {[%clk 0:02:53.8]}
4. e4 {[%clk 0:02:57.6]} 4... d6 {[%clk 0:02:53.8]} 5. Qd2 {[%clk 0:02:57.3]}
5... Nbd7 {[%clk 0:02:48]} 6. O-O-O {[%clk 0:02:54.9]} 6... c5 {[%clk
0:02:46.3]} 7. dxc5 {[%clk 0:02:43.2]} 7... Nxc5 {[%clk 0:02:43.7]} 8. e5 {[%clk
0:02:30.5]} 8... Nh5 {[%clk 0:02:29.9]} 9. Be3 {[%clk 0:02:30.3]} 9... Qa5
{[%clk 0:00:40.4]} 10. Bb5+ {[%clk 0:02:29.8]} 10... Bd7 {[%clk 0:00:33.3]} 11.
Bxd7+ {[%clk 0:02:10.7]} 11... Nxd7 {[%clk 0:00:32.8]} 12. g4 {[%clk 0:02:10.6]}
12... Nxe5 {[%clk 0:00:20.9]} 13. gxh5 {[%clk 0:02:01.3]} 13... Nc4 {[%clk
0:00:20.9]} 14. Qd5 {[%clk 0:01:59]} 14... Bxc3 {[%clk 0:00:15.3]} 15. Qxc4
{[%clk 0:01:58.7]} 15... Bb4 {[%clk 0:00:04.7]} 16. Rd5 {[%clk 0:01:37]} 16...
Qa4 {[%clk 0:00:01.1]} 17. c3 {[%clk 0:01:29.3]} 1-0

[Event "*** Titled Tuesday Blitz"]
[Site "Chess.com"]
[Date "2020.03.03"]
[Round "5"]
[White "Orest_Vovk"]
[Black "Gordima"]
[Result "0-1"]
[WhiteElo "2530"]
[BlackElo "2762"]
[TimeControl "180+1"]
[EndTime "9:50:12 PST"]
[Termination "Gordima won by checkmate"]

1. g4 {[%clk 0:03:00.9]} 1... d5 {[%clk 0:02:57.8]} 2. Bg2 {[%clk 0:02:59.1]}
2... c6 {[%clk 0:02:57.5]} 3. h3 {[%clk 0:02:59.1]} 3... e5 {[%clk 0:02:48.9]}
4. d4 {[%clk 0:02:59.1]} 4... exd4 {[%clk 0:02:41.7]} 5. Qxd4 {[%clk 0:02:58.7]}
5... Be6 {[%clk 0:02:35.5]} 6. Nf3 {[%clk 0:02:57.3]} 6... h6 {[%clk 0:02:31.8]}
7. O-O {[%clk 0:02:55.7]} 7... Nd7 {[%clk 0:02:31.1]} 8. e4 {[%clk 0:02:50.9]}
8... dxe4 {[%clk 0:02:27.2]} 9. Qxe4 {[%clk 0:02:49.8]} 9... Ngf6 {[%clk
0:02:27.1]} 10. Qe2 {[%clk 0:02:48]} 10... Bc5 {[%clk 0:02:15.5]} 11. Be3 {[%clk
0:02:34.7]} 11... O-O {[%clk 0:02:10.5]} 12. Nc3 {[%clk 0:02:30.6]} 12... Re8
{[%clk 0:02:04.3]} 13. Bxc5 {[%clk 0:02:27.1]} 13... Nxc5 {[%clk 0:02:05.2]} 14.
Qd2 {[%clk 0:02:26.9]} 14... Qb6 {[%clk 0:02:01.3]} 15. b3 {[%clk 0:02:11.6]}
15... Rad8 {[%clk 0:01:59.4]} 16. Qc1 {[%clk 0:02:11.2]} 16... Qb4 {[%clk
0:01:53.1]} 17. Qb2 {[%clk 0:02:04.7]} 17... Bd5 {[%clk 0:01:44.6]} 18. Nxd5
{[%clk 0:01:56.3]} 18... Nxd5 {[%clk 0:01:45.5]} 19. c4 {[%clk 0:01:21]} 19...
Nf4 {[%clk 0:01:41.3]} 20. Rad1 {[%clk 0:01:11.9]} 20... Ncd3 {[%clk 0:01:39.5]}
21. Qd2 {[%clk 0:01:00.3]} 21... Qc5 {[%clk 0:01:35.2]} 22. Ne1 {[%clk
0:00:42.7]} 22... Ne2+ {[%clk 0:01:23.7]} 23. Kh2 {[%clk 0:00:33.8]} 23... Nxf2
{[%clk 0:01:01.9]} 24. Qxd8 {[%clk 0:00:30.7]} 24... Qe5# {[%clk 0:01:02]} 0-1

[Event "*** Titled Tuesday Blitz"]
[Site "Chess.com"]
[Date "2020.03.03"]
[Round "5"]
[White "SantoBlue"]
[Black "juniortay"]
[Result "1-0"]
[WhiteElo "2760"]
[BlackElo "2495"]
[TimeControl "180+1"]
[EndTime "9:50:30 PST"]
[Termination "SantoBlue won by resignation"]

1. e4 {[%clk 0:03:00.9]} 1... e5 {[%clk 0:02:59.7]} 2. Nf3 {[%clk 0:02:59.9]}
2... Nf6 {[%clk 0:02:59.9]} 3. d3 {[%clk 0:02:56.1]} 3... Nc6 {[%clk 0:02:59.8]}
4. g3 {[%clk 0:02:53.7]} 4... d5 {[%clk 0:02:56]} 5. exd5 {[%clk 0:02:53.4]}
5... Nxd5 {[%clk 0:02:56.9]} 6. Bg2 {[%clk 0:02:53.7]} 6... Bd6 {[%clk
0:02:47.6]} 7. Nc3 {[%clk 0:02:51.9]} 7... Nxc3 {[%clk 0:02:46.7]} 8. bxc3
{[%clk 0:02:52.8]} 8... O-O {[%clk 0:02:47.3]} 9. O-O {[%clk 0:02:53.5]} 9...
Bg4 {[%clk 0:02:47.2]} 10. h3 {[%clk 0:02:51]} 10... Bh5 {[%clk 0:02:46.8]} 11.
Rb1 {[%clk 0:02:51.5]} 11... Rb8 {[%clk 0:02:46.4]} 12. Re1 {[%clk 0:02:52]}
12... f5 {[%clk 0:02:45.7]} 13. Qe2 {[%clk 0:02:31]} 13... Qf6 {[%clk
0:02:42.9]} 14. Qf1 {[%clk 0:02:21]} 14... Kh8 {[%clk 0:02:30.1]} 15. Nd2 {[%clk
0:02:16.7]} 15... Bc5 {[%clk 0:02:09.4]} 16. Nb3 {[%clk 0:02:14.3]} 16... Bb6
{[%clk 0:02:08.2]} 17. c4 {[%clk 0:02:03.9]} 17... Nd4 {[%clk 0:01:36.5]} 18.
Ba3 {[%clk 0:02:00.8]} 18... Rfe8 {[%clk 0:01:14.9]} 19. c5 {[%clk 0:01:50.7]}
19... Nxc2 {[%clk 0:01:08.6]} 20. Bb2 {[%clk 0:01:48.9]} 20... Nxe1 {[%clk
0:01:06.5]} 21. Rxe1 {[%clk 0:01:49.8]} 21... Ra8 {[%clk 0:00:52.1]} 22. cxb6
{[%clk 0:01:42.1]} 22... axb6 {[%clk 0:00:53]} 23. f4 {[%clk 0:01:42.7]} 23...
Rxa2 {[%clk 0:00:48]} 24. Bxe5 {[%clk 0:01:41.9]} 24... Qg6 {[%clk 0:00:37.2]}
25. Kh2 {[%clk 0:01:34.5]} 25... Qc6 {[%clk 0:00:27.6]} 26. Nd4 {[%clk
0:01:33.5]} 26... Qd5 {[%clk 0:00:25.2]} 27. Nxf5 {[%clk 0:01:25.2]} 27... Rxe5
{[%clk 0:00:14.7]} 28. Rxe5 {[%clk 0:01:24.5]} 28... Qf3 {[%clk 0:00:09.7]} 29.
Re8+ {[%clk 0:01:22.8]} 1-0

[Event "*** Titled Tuesday Blitz"]
[Site "Chess.com"]
[Date "2020.03.03"]
[Round "5"]
[White "JakeCarlosBanawa"]
[Black "RitvarsReimanis"]
[Result "0-1"]
[WhiteElo "2404"]
[BlackElo "2622"]
[TimeControl "180+1"]
[EndTime "9:50:31 PST"]
[Termination "RitvarsReimanis won on time"]

1. d4 {[%clk 0:02:56.9]} 1... Nf6 {[%clk 0:02:56.9]} 2. c4 {[%clk 0:02:56]} 2...
e6 {[%clk 0:02:56.6]} 3. Nc3 {[%clk 0:02:55.5]} 3... d5 {[%clk 0:02:55.9]} 4.
cxd5 {[%clk 0:02:54.5]} 4... exd5 {[%clk 0:02:56.8]} 5. Bg5 {[%clk 0:02:54.5]}
5... Nbd7 {[%clk 0:02:57.4]} 6. e3 {[%clk 0:02:54.1]} 6... Be7 {[%clk
0:02:57.2]} 7. Bd3 {[%clk 0:02:54.1]} 7... c6 {[%clk 0:02:57.4]} 8. Qc2 {[%clk
0:02:54.3]} 8... O-O {[%clk 0:02:55.5]} 9. Nge2 {[%clk 0:02:53.3]} 9... Re8
{[%clk 0:02:55.8]} 10. O-O-O {[%clk 0:02:50.3]} 10... Nf8 {[%clk 0:02:56.6]} 11.
f3 {[%clk 0:02:44.4]} 11... Ng6 {[%clk 0:02:56.7]} 12. Nf4 {[%clk 0:02:21.7]}
12... Nd7 {[%clk 0:02:54.8]} 13. h4 {[%clk 0:01:59.7]} 13... Nxf4 {[%clk
0:02:48.6]} 14. Bxf4 {[%clk 0:01:58.5]} 14... Nf8 {[%clk 0:02:46.3]} 15. Kb1
{[%clk 0:01:42.4]} 15... Bd6 {[%clk 0:02:46.2]} 16. Bxd6 {[%clk 0:01:36.9]}
16... Qxd6 {[%clk 0:02:47.1]} 17. Qd2 {[%clk 0:01:23.4]} 17... Qh6 {[%clk
0:02:46.9]} 18. e4 {[%clk 0:01:19.8]} 18... Qxd2 {[%clk 0:02:45.7]} 19. Rxd2
{[%clk 0:01:19.4]} 19... dxe4 {[%clk 0:02:45.3]} 20. fxe4 {[%clk 0:01:20.3]}
20... Bg4 {[%clk 0:02:41.7]} 21. e5 {[%clk 0:01:15.8]} 21... Rad8 {[%clk
0:02:41.3]} 22. Bc4 {[%clk 0:01:13.4]} 22... Be6 {[%clk 0:02:40.9]} 23. Bxe6
{[%clk 0:00:51]} 23... Nxe6 {[%clk 0:02:41.8]} 24. d5 {[%clk 0:00:46.4]} 24...
cxd5 {[%clk 0:02:38.8]} 25. Nxd5 {[%clk 0:00:46.4]} 25... Nf4 {[%clk 0:02:31.8]}
26. Rhd1 {[%clk 0:00:36.6]} 26... Nxd5 {[%clk 0:02:19.8]} 27. Rxd5 {[%clk
0:00:35.7]} 27... Rxd5 {[%clk 0:02:19]} 28. Rxd5 {[%clk 0:00:36.6]} 28... g6
{[%clk 0:02:18.6]} 29. Rd7 {[%clk 0:00:33.1]} 29... b5 {[%clk 0:02:16.1]} 30.
Rxa7 {[%clk 0:00:26.9]} 30... Rxe5 {[%clk 0:02:16.5]} 31. Rb7 {[%clk 0:00:21.9]}
31... h5 {[%clk 0:02:15.4]} 32. b3 {[%clk 0:00:19.3]} 32... Kg7 {[%clk
0:02:14.4]} 33. Kb2 {[%clk 0:00:15.3]} 33... Re2+ {[%clk 0:02:07.5]} 34. Ka3
{[%clk 0:00:14.8]} 34... Rxg2 {[%clk 0:02:05]} 35. Rxb5 {[%clk 0:00:15]} 35...
Rg4 {[%clk 0:02:05.4]} 36. Rb4 {[%clk 0:00:15.3]} 36... Rxb4 {[%clk 0:01:52.9]}
37. Kxb4 {[%clk 0:00:14.7]} 37... g5 {[%clk 0:01:53.5]} 38. a4 {[%clk
0:00:11.6]} 38... gxh4 {[%clk 0:01:51.6]} 39. a5 {[%clk 0:00:11.4]} 39... h3
{[%clk 0:01:52]} 40. a6 {[%clk 0:00:11.7]} 40... h2 {[%clk 0:01:52.2]} 0-1

[Event "*** Titled Tuesday Blitz"]
[Site "Chess.com"]
[Date "2020.03.03"]
[Round "5"]
[White "davserr65"]
[Black "Zarikovs1999"]
[Result "1-0"]
[WhiteElo "2051"]
[BlackElo "2348"]
[TimeControl "180+1"]
[EndTime "9:50:33 PST"]
[Termination "davserr65 won by resignation"]

1. Nf3 {[%clk 0:03:00.9]} 1... c5 {[%clk 0:02:56.4]} 2. c4 {[%clk 0:03:00.7]}
2... Nf6 {[%clk 0:02:54.4]} 3. g3 {[%clk 0:03:00.5]} 3... d5 {[%clk 0:02:44]} 4.
cxd5 {[%clk 0:02:59.6]} 4... Nxd5 {[%clk 0:02:44.9]} 5. Bg2 {[%clk 0:03:00.1]}
5... Nc6 {[%clk 0:02:39.4]} 6. d4 {[%clk 0:02:59.9]} 6... Nc7 {[%clk 0:02:09.8]}
7. dxc5 {[%clk 0:02:23.5]} 7... Qxd1+ {[%clk 0:02:10.7]} 8. Kxd1 {[%clk
0:02:23.8]} 8... e5 {[%clk 0:02:09.3]} 9. Be3 {[%clk 0:02:18.8]} 9... Ne6 {[%clk
0:01:49.8]} 10. Nc3 {[%clk 0:02:15.7]} 10... Nxc5 {[%clk 0:01:49.9]} 11. Nb5
{[%clk 0:02:05.2]} 11... Na6 {[%clk 0:01:38.6]} 12. a3 {[%clk 0:01:51]} 12...
Be6 {[%clk 0:01:35.4]} 13. Ng5 {[%clk 0:01:49.4]} 13... Bb3+ {[%clk 0:01:34.8]}
14. Ke1 {[%clk 0:01:49.2]} 14... f6 {[%clk 0:01:30]} 15. Nf3 {[%clk 0:01:45.1]}
15... Be7 {[%clk 0:01:23.7]} 16. Nd2 {[%clk 0:01:44.8]} 16... Be6 {[%clk
0:01:20.9]} 17. f3 {[%clk 0:01:44.5]} 17... Kf7 {[%clk 0:01:14.7]} 18. Kf2
{[%clk 0:01:44.6]} 18... Rhd8 {[%clk 0:01:08]} 19. Rhd1 {[%clk 0:01:43.9]} 19...
Nc5 {[%clk 0:01:08.2]} 20. b4 {[%clk 0:01:39.5]} 20... Nb3 {[%clk 0:00:59.9]}
21. Nxb3 {[%clk 0:01:39.4]} 21... Bxb3 {[%clk 0:01:00.8]} 22. Rxd8 {[%clk
0:01:38.9]} 22... Rxd8 {[%clk 0:01:01.7]} 23. Nxa7 {[%clk 0:01:35.9]} 23... Nxa7
{[%clk 0:00:41.2]} 24. Bxa7 {[%clk 0:01:35.7]} 24... Rd2 {[%clk 0:00:42.1]} 25.
Be3 {[%clk 0:01:35.6]} 25... Rb2 {[%clk 0:00:40.5]} 26. f4 {[%clk 0:01:32.5]}
26... Bc4 {[%clk 0:00:39.5]} 27. Bf3 {[%clk 0:01:32.5]} 27... e4 {[%clk
0:00:34.8]} 28. Bxe4 {[%clk 0:01:30.9]} 28... Bxe2 {[%clk 0:00:30.8]} 29. Bd4
{[%clk 0:01:27.7]} 29... Rd2 {[%clk 0:00:28.8]} 30. Ke3 {[%clk 0:01:26.9]} 30...
Rxd4 {[%clk 0:00:21]} 31. Kxd4 {[%clk 0:01:27]} 31... f5 {[%clk 0:00:20.8]} 32.
Ke3 {[%clk 0:01:25.8]} 32... fxe4 {[%clk 0:00:17.4]} 33. Kxe2 {[%clk 0:01:25.5]}
33... Bf6 {[%clk 0:00:16.3]} 34. Ra2 {[%clk 0:01:22.4]} 1-0

[Event "*** Titled Tuesday Blitz"]
[Site "Chess.com"]
[Date "2020.03.03"]
[Round "5"]
[White "burbur555"]
[Black "Manukyan_Artak"]
[Result "1-0"]
[WhiteElo "2598"]
[BlackElo "2414"]
[TimeControl "180+1"]
[EndTime "9:50:37 PST"]
[Termination "burbur555 won by checkmate"]

1. c4 {[%clk 0:03:00.9]} 1... g6 {[%clk 0:02:57.6]} 2. g3 {[%clk 0:03:01.3]}
2... h5 {[%clk 0:02:56.8]} 3. h4 {[%clk 0:03:00.1]} 3... Nh6 {[%clk 0:02:56]} 4.
Nc3 {[%clk 0:02:58.9]} 4... c5 {[%clk 0:02:45.1]} 5. Bg2 {[%clk 0:02:57.9]} 5...
Nc6 {[%clk 0:02:37.2]} 6. Nf3 {[%clk 0:02:57.2]} 6... Nf5 {[%clk 0:02:35]} 7.
Rb1 {[%clk 0:02:51.8]} 7... d6 {[%clk 0:02:28.9]} 8. d3 {[%clk 0:02:51]} 8...
Bg7 {[%clk 0:02:19.4]} 9. a3 {[%clk 0:02:50]} 9... a5 {[%clk 0:02:18.7]} 10. Bd2
{[%clk 0:02:49.2]} 10... O-O {[%clk 0:02:16.5]} 11. O-O {[%clk 0:02:48]} 11...
e5 {[%clk 0:02:06.7]} 12. Nd5 {[%clk 0:02:46]} 12... Nfd4 {[%clk 0:02:02.1]} 13.
b4 {[%clk 0:02:43.6]} 13... axb4 {[%clk 0:02:01.2]} 14. axb4 {[%clk 0:02:43]}
14... Nxf3+ {[%clk 0:02:00.7]} 15. Bxf3 {[%clk 0:02:42.2]} 15... Bh3 {[%clk
0:02:00.2]} 16. Bg2 {[%clk 0:02:41.3]} 16... Bxg2 {[%clk 0:01:59.3]} 17. Kxg2
{[%clk 0:02:41]} 17... cxb4 {[%clk 0:01:54.2]} 18. Bxb4 {[%clk 0:02:33]} 18...
f5 {[%clk 0:01:43.3]} 19. Bd2 {[%clk 0:02:31.7]} 19... Rf7 {[%clk 0:01:35.5]}
20. Bg5 {[%clk 0:02:30.3]} 20... Qd7 {[%clk 0:01:34.6]} 21. e3 {[%clk
0:02:26.7]} 21... Raf8 {[%clk 0:01:29]} 22. Qe2 {[%clk 0:02:05.6]} 22... Kh7
{[%clk 0:01:22.6]} 23. Rb6 {[%clk 0:02:03.5]} 23... f4 {[%clk 0:01:21]} 24. exf4
{[%clk 0:02:02.4]} 24... exf4 {[%clk 0:01:08.4]} 25. Bxf4 {[%clk 0:02:01.3]}
25... Nd4 {[%clk 0:00:53.5]} 26. Qd1 {[%clk 0:02:00.2]} 26... Nf5 {[%clk
0:00:48.6]} 27. Bg5 {[%clk 0:01:55.8]} 27... Bd4 {[%clk 0:00:37.6]} 28. Rb1
{[%clk 0:01:54]} 28... Nxh4+ {[%clk 0:00:28.6]} 29. gxh4 {[%clk 0:01:44.8]}
29... Rxf2+ {[%clk 0:00:28.3]} 30. Rxf2 {[%clk 0:01:44.7]} 30... Rxf2+ {[%clk
0:00:29.2]} 31. Kg3 {[%clk 0:01:44.2]} 31... Qf7 {[%clk 0:00:19.9]} 32. Nf6+
{[%clk 0:01:34.7]} 32... Bxf6 {[%clk 0:00:18]} 33. Kxf2 {[%clk 0:01:32.3]} 33...
Bxg5+ {[%clk 0:00:18]} 34. Kg2 {[%clk 0:01:31.8]} 34... Bxh4 {[%clk 0:00:18]}
35. Qf3 {[%clk 0:01:31.6]} 35... Qe6 {[%clk 0:00:15.3]} 36. Rxb7+ {[%clk
0:01:29.3]} 36... Kh6 {[%clk 0:00:15.8]} 37. Qf4+ {[%clk 0:01:27.7]} 37... Bg5
{[%clk 0:00:15.4]} 38. Qf8# {[%clk 0:01:27]} 1-0